[Event "Live Chess"]
[Site "Chess.com"]
[Date "2023.05.20"]
[Round "-"]
[White "lucaskk818"]
[Black "Singapourfeuj"]
[Result "0-1"]
[WhiteElo "1867"]
[BlackElo "2262"]
[TimeControl "300"]
[EndTime "10:09:03 PDT"]
[Termination "Singapourfeuj won by checkmate"]

1. d4 {[%clk 0:04:59.1]} 1... e5 {[%clk 0:04:58.2]} 2. c4 {[%clk 0:04:58.5]}
2... exd4 {[%clk 0:04:57.1]} 3. Qxd4 {[%clk 0:04:57]} 3... Nc6 {[%clk
0:04:56.5]} 4. Qd1 {[%clk 0:04:56.4]} 4... Nf6 {[%clk 0:04:54.3]} 5. Nf3 {[%clk
0:04:56]} 5... Bb4+ {[%clk 0:04:53.2]} 6. Bd2 {[%clk 0:04:54.7]} 6... Bxd2+
{[%clk 0:04:52.1]} 7. Nbxd2 {[%clk 0:04:54.6]} 7... O-O {[%clk 0:04:49.6]} 8. e3
{[%clk 0:04:54.1]} 8... d5 {[%clk 0:04:48.4]} 9. cxd5 {[%clk 0:04:52.4]} 9...
Qxd5 {[%clk 0:04:47.3]} 10. Bc4 {[%clk 0:04:46.8]} 10... Qh5 {[%clk 0:04:46]}
11. O-O {[%clk 0:04:41]} 11... Bg4 {[%clk 0:04:44.3]} 12. h3 {[%clk 0:04:34.9]}
12... Bxf3 {[%clk 0:04:42.9]} 13. Qxf3 {[%clk 0:04:32.1]} 13... Qxf3 {[%clk
0:04:41.2]} 14. Nxf3 {[%clk 0:04:32]} 14... Rad8 {[%clk 0:04:40]} 15. Rad1
{[%clk 0:04:29.6]} 15... h6 {[%clk 0:04:37.5]} 16. a3 {[%clk 0:04:28]} 16... b6
{[%clk 0:04:34.4]} 17. Bb5 {[%clk 0:04:21.6]} 17... Ne7 {[%clk 0:04:32.2]} 18.
Ne5 {[%clk 0:04:18.3]} 18... c5 {[%clk 0:04:28.2]} 19. Nc6 {[%clk 0:04:03.1]}
19... Nxc6 {[%clk 0:04:27]} 20. Bxc6 {[%clk 0:04:03]} 20... g5 {[%clk
0:04:24.3]} 21. Bb5 {[%clk 0:04:00.2]} 21... Kg7 {[%clk 0:04:23]} 22. f3 {[%clk
0:03:59.1]} 22... Nd5 {[%clk 0:04:21.1]} 23. Kf2 {[%clk 0:03:54.7]} 23... f5
{[%clk 0:04:17.6]} 24. g3 {[%clk 0:03:53.5]} 24... f4 {[%clk 0:04:15.5]} 25.
gxf4 {[%clk 0:03:47.2]} 25... gxf4 {[%clk 0:04:14.6]} 26. e4 {[%clk 0:03:46.6]}
26... Ne3 {[%clk 0:04:13.5]} 27. Rxd8 {[%clk 0:03:44.6]} 27... Rxd8 {[%clk
0:04:12.4]} 28. Rg1+ {[%clk 0:03:40.5]} 28... Kf6 {[%clk 0:04:11.5]} 29. Re1
{[%clk 0:03:34.6]} 29... Rd2+ {[%clk 0:04:08.6]} 30. Re2 {[%clk 0:03:33.1]}
30... Rd1 {[%clk 0:04:02.6]} 31. Bd7 {[%clk 0:03:20.4]} 31... Rf1# {[%clk
0:04:00.6]} 0-1

[Event "Live Chess"]
[Site "Chess.com"]
[Date "2023.05.20"]
[Round "-"]
[White "AwesomeFredster"]
[Black "lamteama1"]
[Result "0-1"]
[WhiteElo "1322"]
[BlackElo "1047"]
[TimeControl "300"]
[EndTime "10:09:16 PDT"]
[Termination "lamteama1 won by resignation"]

1. e4 {[%clk 0:04:59.6]} 1... e5 {[%clk 0:04:36]} 2. Nf3 {[%clk 0:04:53.3]} 2...
Qe7 {[%clk 0:04:31.4]} 3. Bc4 {[%clk 0:04:51.3]} 3... h6 {[%clk 0:04:23.3]} 4.
Nc3 {[%clk 0:04:50.1]} 4... c6 {[%clk 0:04:17]} 5. O-O {[%clk 0:04:48.3]} 5...
d6 {[%clk 0:04:11]} 6. d3 {[%clk 0:04:47.3]} 6... b5 {[%clk 0:04:02.3]} 7. Bb3
{[%clk 0:04:44.9]} 7... a5 {[%clk 0:03:57]} 8. a3 {[%clk 0:04:42.4]} 8... Nf6
{[%clk 0:03:51.5]} 9. Be3 {[%clk 0:04:39.3]} 9... Qc7 {[%clk 0:03:46.1]} 10. d4
{[%clk 0:04:31]} 10... Nbd7 {[%clk 0:03:40.2]} 11. dxe5 {[%clk 0:04:29.3]} 11...
dxe5 {[%clk 0:03:33.5]} 12. Qd2 {[%clk 0:04:22.6]} 12... Be7 {[%clk 0:03:28.6]}
13. Rad1 {[%clk 0:04:21.4]} 13... b4 {[%clk 0:03:21.4]} 14. Na4 {[%clk
0:04:18.4]} 14... bxa3 {[%clk 0:03:14.4]} 15. bxa3 {[%clk 0:04:17.6]} 15... Nxe4
{[%clk 0:03:08.4]} 16. Qd3 {[%clk 0:04:13.4]} 16... Nef6 {[%clk 0:03:00.5]} 17.
h3 {[%clk 0:04:08.3]} 17... e4 {[%clk 0:02:53.6]} 0-1

[Event "Live Chess"]
[Site "Chess.com"]
[Date "2023.05.20"]
[Round "-"]
[White "domrobson"]
[Black "Ninifu"]
[Result "0-1"]
[WhiteElo "1734"]
[BlackElo "1981"]
[TimeControl "300"]
[EndTime "10:09:26 PDT"]
[Termination "Ninifu won by resignation"]

1. d4 {[%clk 0:04:59.2]} 1... Nf6 {[%clk 0:04:55.6]} 2. c4 {[%clk 0:04:58.3]}
2... g6 {[%clk 0:04:54.3]} 3. Nc3 {[%clk 0:04:57.6]} 3... Bg7 {[%clk 0:04:53.7]}
4. e4 {[%clk 0:04:57.2]} 4... d6 {[%clk 0:04:53]} 5. Be2 {[%clk 0:04:56.8]} 5...
O-O {[%clk 0:04:52.4]} 6. Bg5 {[%clk 0:04:56.4]} 6... Na6 {[%clk 0:04:49.3]} 7.
h4 {[%clk 0:04:54.1]} 7... h5 {[%clk 0:04:46.1]} 8. f3 {[%clk 0:04:51.9]} 8...
e5 {[%clk 0:04:39.6]} 9. d5 {[%clk 0:04:50.4]} 9... c6 {[%clk 0:04:37.7]} 10.
Qd2 {[%clk 0:04:41.1]} 10... cxd5 {[%clk 0:04:35.3]} 11. Nxd5 {[%clk 0:04:39]}
11... Nc5 {[%clk 0:04:26.9]} 12. b4 {[%clk 0:04:33]} 12... Ne6 {[%clk
0:04:24.8]} 13. Bh6 {[%clk 0:04:27.1]} 13... Nd4 {[%clk 0:03:50]} 14. Be3 {[%clk
0:04:20.4]} 14... Nd7 {[%clk 0:03:42.8]} 15. Bxd4 {[%clk 0:04:11.2]} 15... exd4
{[%clk 0:03:41.5]} 16. Bd3 {[%clk 0:04:09.4]} 16... a5 {[%clk 0:03:40.5]} 17.
Ne2 {[%clk 0:04:00.9]} 17... axb4 {[%clk 0:03:37.4]} 18. Qxb4 {[%clk 0:03:55.2]}
18... Nc5 {[%clk 0:03:36.5]} 19. Qd2 {[%clk 0:03:48.1]} 19... Ra3 {[%clk
0:03:34]} 20. Nc1 {[%clk 0:03:25.6]} 20... Re8 {[%clk 0:02:48.6]} 21. Kf2 {[%clk
0:03:18.2]} 21... f5 {[%clk 0:02:37.2]} 22. g3 {[%clk 0:03:02.3]} 22... fxe4
{[%clk 0:02:30.4]} 23. fxe4 {[%clk 0:03:00.3]} 23... Rxd3 {[%clk 0:02:22.8]} 0-1

[Event "Live Chess"]
[Site "Chess.com"]
[Date "2023.05.20"]
[Round "-"]
[White "Assassin696969"]
[Black "TDCMF"]
[Result "1-0"]
[WhiteElo "2114"]
[BlackElo "340"]
[TimeControl "300"]
[EndTime "10:09:33 PDT"]
[Termination "Assassin696969 won by checkmate"]

1. e4 {[%clk 0:04:59.4]} 1... e5 {[%clk 0:04:58.7]} 2. Nc3 {[%clk 0:04:58.3]}
2... d5 {[%clk 0:04:52]} 3. Nxd5 {[%clk 0:04:54.5]} 3... Be6 {[%clk 0:04:48.3]}
4. Nc3 {[%clk 0:04:52.3]} 4... Bc5 {[%clk 0:04:41.8]} 5. Nf3 {[%clk 0:04:46.4]}
5... Nf6 {[%clk 0:04:38.7]} 6. h3 {[%clk 0:04:44.7]} 6... Bg4 {[%clk 0:04:27.5]}
7. hxg4 {[%clk 0:04:40]} 7... Nxg4 {[%clk 0:04:26.2]} 8. d4 {[%clk 0:04:35.6]}
8... exd4 {[%clk 0:04:18.6]} 9. Nxd4 {[%clk 0:04:31.3]} 9... Bxd4 {[%clk
0:04:14]} 10. Qxg4 {[%clk 0:04:29.7]} 10... Qf6 {[%clk 0:03:54.1]} 11. Qc8+
{[%clk 0:04:14.5]} 11... Ke7 {[%clk 0:03:51.2]} 12. Qxc7+ {[%clk 0:04:13.7]}
12... Ke8 {[%clk 0:03:47.5]} 13. Qc8+ {[%clk 0:04:08.3]} 13... Ke7 {[%clk
0:03:46.2]} 14. Nd5+ {[%clk 0:04:06.8]} 14... Kd6 {[%clk 0:03:38.8]} 15. Qc7+
{[%clk 0:04:04.6]} 15... Ke6 {[%clk 0:03:36.1]} 16. Nxf6 {[%clk 0:04:03.1]}
16... gxf6 {[%clk 0:03:34.9]} 17. Bc4# {[%clk 0:03:55.6]} 1-0

[Event "Live Chess"]
[Site "Chess.com"]
[Date "2023.05.20"]
[Round "-"]
[White "WelshTiger"]
[Black "jusjoel"]
[Result "1-0"]
[WhiteElo "2430"]
[BlackElo "297"]
[TimeControl "300"]
[EndTime "10:09:37 PDT"]
[Termination "WelshTiger won by checkmate"]

1. d4 {[%clk 0:04:52.4]} 1... d5 {[%clk 0:04:50.6]} 2. Nf3 {[%clk 0:04:49.3]}
2... e6 {[%clk 0:04:44.2]} 3. g3 {[%clk 0:04:45.6]} 3... Bb4+ {[%clk 0:04:40.7]}
4. c3 {[%clk 0:04:44.3]} 4... Ba5 {[%clk 0:04:31.9]} 5. Bg2 {[%clk 0:04:43.6]}
5... Qd6 {[%clk 0:04:28.6]} 6. O-O {[%clk 0:04:39.6]} 6... Nf6 {[%clk 0:04:27]}
7. a4 {[%clk 0:04:31.6]} 7... Ng4 {[%clk 0:04:09.2]} 8. b4 {[%clk 0:04:27.5]}
8... Bb6 {[%clk 0:03:59.6]} 9. a5 {[%clk 0:04:26.9]} 9... e5 {[%clk 0:03:44.6]}
10. axb6 {[%clk 0:04:24.7]} 10... cxb6 {[%clk 0:03:35.1]} 11. dxe5 {[%clk
0:04:23.6]} 11... Qxe5 {[%clk 0:03:31.3]} 12. Nxe5 {[%clk 0:04:22.1]} 12... Nxf2
{[%clk 0:03:29.2]} 13. Qxd5 {[%clk 0:04:19.7]} 13... Bh3 {[%clk 0:03:19.9]} 14.
Qxf7+ {[%clk 0:04:15.8]} 14... Kd8 {[%clk 0:03:14.2]} 15. Bg5+ {[%clk
0:04:15.1]} 15... Kc8 {[%clk 0:03:11.8]} 16. Rxf2 {[%clk 0:03:51.2]} 16... Rd8
{[%clk 0:03:01.4]} 17. Na3 {[%clk 0:03:47.9]} 17... Nc6 {[%clk 0:02:54.4]} 18.
Bxh3+ {[%clk 0:03:46.9]} 18... Kb8 {[%clk 0:02:44]} 19. Nxc6+ {[%clk 0:03:46.1]}
19... bxc6 {[%clk 0:02:28.5]} 20. Bf4+ {[%clk 0:03:46]} 20... Rd6 {[%clk
0:02:05.1]} 21. Bxd6# {[%clk 0:03:45.9]} 1-0

[Event "Live Chess"]
[Site "Chess.com"]
[Date "2023.05.20"]
[Round "-"]
[White "FlyingChessKestrel13"]
[Black "JoshMcK"]
[Result "1-0"]
[WhiteElo "2118"]
[BlackElo "1540"]
[TimeControl "300"]
[EndTime "10:09:40 PDT"]
[Termination "FlyingChessKestrel13 won by checkmate"]

1. e4 {[%clk 0:04:58.2]} 1... d6 {[%clk 0:04:57.5]} 2. d4 {[%clk 0:04:57.7]}
2... Nf6 {[%clk 0:04:56.8]} 3. Nc3 {[%clk 0:04:56.9]} 3... g6 {[%clk 0:04:55.4]}
4. f4 {[%clk 0:04:55.9]} 4... Bg7 {[%clk 0:04:54.6]} 5. e5 {[%clk 0:04:55.4]}
5... dxe5 {[%clk 0:04:54.1]} 6. fxe5 {[%clk 0:04:54.6]} 6... Nd5 {[%clk
0:04:53.4]} 7. Bc4 {[%clk 0:04:53.5]} 7... Nxc3 {[%clk 0:04:52]} 8. bxc3 {[%clk
0:04:52.4]} 8... O-O {[%clk 0:04:51.2]} 9. Nf3 {[%clk 0:04:51.2]} 9... Bg4
{[%clk 0:04:49.6]} 10. O-O {[%clk 0:04:50.6]} 10... e6 {[%clk 0:04:47.4]} 11.
Qe2 {[%clk 0:04:49.1]} 11... Nc6 {[%clk 0:04:46.1]} 12. h3 {[%clk 0:04:43.2]}
12... Bxf3 {[%clk 0:04:44.9]} 13. Rxf3 {[%clk 0:04:41.6]} 13... a6 {[%clk
0:04:42.8]} 14. Be3 {[%clk 0:04:38.1]} 14... b5 {[%clk 0:04:41.3]} 15. Bd3
{[%clk 0:04:37.6]} 15... Ne7 {[%clk 0:04:37]} 16. Bg5 {[%clk 0:04:34.7]} 16...
Qd7 {[%clk 0:04:34.5]} 17. Bf6 {[%clk 0:04:33.5]} 17... Nd5 {[%clk 0:04:28.1]}
18. Bxg7 {[%clk 0:04:30.2]} 18... Kxg7 {[%clk 0:04:28]} 19. Be4 {[%clk
0:04:28.8]} 19... Rac8 {[%clk 0:04:22.2]} 20. h4 {[%clk 0:04:26.9]} 20... f5
{[%clk 0:04:15.1]} 21. Bxd5 {[%clk 0:04:22.6]} 21... Qxd5 {[%clk 0:04:12.8]} 22.
h5 {[%clk 0:04:10.2]} 22... c5 {[%clk 0:04:11.3]} 23. Rg3 {[%clk 0:04:03.2]}
23... cxd4 {[%clk 0:04:04.7]} 24. hxg6 {[%clk 0:03:59.8]} 24... hxg6 {[%clk
0:04:03]} 25. Qh5 {[%clk 0:03:53.3]} 25... Kf7 {[%clk 0:03:50.2]} 26. Qxg6+
{[%clk 0:03:46.2]} 26... Ke7 {[%clk 0:03:49.2]} 27. Qg7+ {[%clk 0:03:40.8]}
27... Rf7 {[%clk 0:03:43.6]} 28. Qg5+ {[%clk 0:03:38]} 28... Kd7 {[%clk
0:03:40]} 29. Rd1 {[%clk 0:03:32.5]} 29... Qa8 {[%clk 0:03:13.2]} 30. Rxd4+
{[%clk 0:03:29.7]} 30... Kc6 {[%clk 0:03:11.8]} 31. Rd6+ {[%clk 0:03:27.5]}
31... Kc5 {[%clk 0:03:06.6]} 32. Qe3+ {[%clk 0:03:22.7]} 32... Kc4 {[%clk
0:03:03.6]} 33. Qd4# {[%clk 0:03:20.9]} 1-0

[Event "Live Chess"]
[Site "Chess.com"]
[Date "2023.05.20"]
[Round "-"]
[White "guptarayan"]
[Black "YF22Raptor"]
[Result "1-0"]
[WhiteElo "625"]
[BlackElo "992"]
[TimeControl "300"]
[EndTime "10:09:44 PDT"]
[Termination "guptarayan won by checkmate"]

1. e4 {[%clk 0:04:59]} 1... c6 {[%clk 0:04:58.6]} 2. d4 {[%clk 0:04:51.5]} 2...
d5 {[%clk 0:04:57.8]} 3. e5 {[%clk 0:04:49.9]} 3... Bf5 {[%clk 0:04:56.3]} 4. f4
{[%clk 0:04:46.9]} 4... e6 {[%clk 0:04:55.2]} 5. Nf3 {[%clk 0:04:45.1]} 5... c5
{[%clk 0:04:53.8]} 6. c3 {[%clk 0:04:42.6]} 6... Qb6 {[%clk 0:04:52.1]} 7. Be3
{[%clk 0:04:37.9]} 7... Nc6 {[%clk 0:04:51.3]} 8. Nbd2 {[%clk 0:04:33.7]} 8...
Qxb2 {[%clk 0:04:50.1]} 9. Rb1 {[%clk 0:04:15.6]} 9... Bxb1 {[%clk 0:04:48]} 10.
Nxb1 {[%clk 0:04:08.4]} 10... Qxa2 {[%clk 0:04:44.9]} 11. Be2 {[%clk 0:04:00.7]}
11... cxd4 {[%clk 0:04:43.4]} 12. Bxd4 {[%clk 0:03:59]} 12... Nxd4 {[%clk
0:04:41.3]} 13. Nxd4 {[%clk 0:03:56.7]} 13... Bc5 {[%clk 0:04:35.9]} 14. O-O
{[%clk 0:03:38.3]} 14... Bxd4+ {[%clk 0:04:34.4]} 15. cxd4 {[%clk 0:03:36.3]}
15... Ne7 {[%clk 0:04:32.7]} 16. Rf2 {[%clk 0:03:21]} 16... Nc6 {[%clk
0:04:15.6]} 17. Bb5 {[%clk 0:03:14.8]} 17... a6 {[%clk 0:04:12.9]} 18. Rxa2
{[%clk 0:03:12.4]} 18... O-O {[%clk 0:04:03]} 19. Bxc6 {[%clk 0:03:04.9]} 19...
bxc6 {[%clk 0:03:49.8]} 20. Rc2 {[%clk 0:03:01.8]} 20... Rfc8 {[%clk 0:03:47.8]}
21. Qc1 {[%clk 0:02:58.6]} 21... a5 {[%clk 0:03:42.7]} 22. Rxc6 {[%clk
0:02:55.3]} 22... Rxc6 {[%clk 0:03:40.7]} 23. Qxc6 {[%clk 0:02:52.2]} 23... a4
{[%clk 0:03:40.2]} 24. Qxa8# {[%clk 0:02:49.2]} 1-0

[Event "Live Chess"]
[Site "Chess.com"]
[Date "2023.05.20"]
[Round "-"]
[White "CheckString"]
[Black "lateforthesky"]
[Result "0-1"]
[WhiteElo "1297"]
[BlackElo "2087"]
[TimeControl "300"]
[EndTime "10:09:50 PDT"]
[Termination "lateforthesky won by resignation"]

1. e4 {[%clk 0:04:59.7]} 1... c5 {[%clk 0:04:57.2]} 2. b3 {[%clk 0:04:57.1]}
2... e5 {[%clk 0:04:49.7]} 3. Bb2 {[%clk 0:04:56]} 3... d6 {[%clk 0:04:48.4]} 4.
Bc4 {[%clk 0:04:49.1]} 4... Nf6 {[%clk 0:04:46]} 5. d3 {[%clk 0:04:45]} 5... Be7
{[%clk 0:04:44.2]} 6. Nd2 {[%clk 0:04:42.6]} 6... O-O {[%clk 0:04:42.8]} 7. Ngf3
{[%clk 0:04:37]} 7... a6 {[%clk 0:04:38.1]} 8. O-O {[%clk 0:04:31.3]} 8... b5
{[%clk 0:04:34.5]} 9. Bd5 {[%clk 0:04:31]} 9... Nxd5 {[%clk 0:04:32.9]} 10. exd5
{[%clk 0:04:30.9]} 10... f5 {[%clk 0:04:26.6]} 11. c3 {[%clk 0:04:18.7]} 11...
Bb7 {[%clk 0:04:15.8]} 12. c4 {[%clk 0:04:17.8]} 12... Nd7 {[%clk 0:04:12.5]}
13. Re1 {[%clk 0:04:10.6]} 13... h6 {[%clk 0:04:01.7]} 14. h3 {[%clk 0:04:04.9]}
14... Nf6 {[%clk 0:03:59.8]} 15. Nh2 {[%clk 0:04:03.2]} 15... Qe8 {[%clk
0:03:52.7]} 16. Qe2 {[%clk 0:04:01.4]} 16... Qg6 {[%clk 0:03:48.5]} 17. f4
{[%clk 0:03:59.2]} 17... Nh5 {[%clk 0:03:24.4]} 18. fxe5 {[%clk 0:03:29.8]}
18... Rae8 {[%clk 0:03:04.4]} 19. e6 {[%clk 0:03:22.9]} 19... Bf6 {[%clk
0:02:38.5]} 20. Bxf6 {[%clk 0:03:21.2]} 20... Rxf6 {[%clk 0:02:37.2]} 21. Qf3
{[%clk 0:03:14.7]} 21... Kh7 {[%clk 0:02:16.2]} 22. Nhf1 {[%clk 0:03:11.6]}
22... Rff8 {[%clk 0:02:13.2]} 23. Re3 {[%clk 0:02:57.4]} 23... Qf6 {[%clk
0:02:10.4]} 24. Rae1 {[%clk 0:02:54.5]} 24... g6 {[%clk 0:02:09.2]} 25. Ng3
{[%clk 0:02:45.5]} 25... Nxg3 {[%clk 0:02:03.6]} 26. Qxg3 {[%clk 0:02:45.4]}
26... f4 {[%clk 0:02:02.6]} 27. Ne4 {[%clk 0:02:39.2]} 27... fxg3 {[%clk
0:01:51.8]} 28. Nxf6+ {[%clk 0:02:37.2]} 28... Rxf6 {[%clk 0:01:50.8]} 29. R1e2
{[%clk 0:02:31.2]} 29... a5 {[%clk 0:01:48.6]} 30. Re4 {[%clk 0:02:23.5]} 30...
a4 {[%clk 0:01:44]} 31. R4e3 {[%clk 0:02:20.4]} 31... axb3 {[%clk 0:01:42.4]}
32. axb3 {[%clk 0:02:20.3]} 32... Rf4 {[%clk 0:01:31.4]} 33. e7 {[%clk 0:02:05]}
33... Kg7 {[%clk 0:01:27.5]} 34. Re6 {[%clk 0:02:01.4]} 34... Rf6 {[%clk
0:01:24.3]} 35. cxb5 {[%clk 0:01:52.4]} 35... Bxd5 {[%clk 0:01:21.2]} 36. Rxf6
{[%clk 0:01:48.5]} 36... Kxf6 {[%clk 0:01:20.4]} 37. b6 {[%clk 0:01:38.6]} 37...
Rxe7 {[%clk 0:01:16.2]} 38. Rf2+ {[%clk 0:01:33.7]} 0-1

[Event "Live Chess"]
[Site "Chess.com"]
[Date "2023.05.20"]
[Round "-"]
[White "Brooms1989"]
[Black "daveeeeR"]
[Result "0-1"]
[WhiteElo "971"]
[BlackElo "1263"]
[TimeControl "300"]
[EndTime "10:09:51 PDT"]
[Termination "daveeeeR won by checkmate"]

1. e4 {[%clk 0:04:57.4]} 1... c5 {[%clk 0:04:45.6]} 2. Nc3 {[%clk 0:04:50.6]}
2... Nc6 {[%clk 0:04:44]} 3. f4 {[%clk 0:04:49.1]} 3... e6 {[%clk 0:04:38.1]} 4.
Nf3 {[%clk 0:04:46.6]} 4... d5 {[%clk 0:04:37]} 5. exd5 {[%clk 0:04:37.7]} 5...
exd5 {[%clk 0:04:36.1]} 6. Bb5 {[%clk 0:04:36.7]} 6... Be6 {[%clk 0:04:30.3]} 7.
Bxc6+ {[%clk 0:04:34.8]} 7... bxc6 {[%clk 0:04:28.5]} 8. O-O {[%clk 0:04:34.3]}
8... Bd6 {[%clk 0:04:26.1]} 9. d3 {[%clk 0:04:32.4]} 9... Ne7 {[%clk 0:04:24.4]}
10. Qe1 {[%clk 0:04:29]} 10... O-O {[%clk 0:04:18.3]} 11. Qg3 {[%clk 0:04:12.3]}
11... Bf5 {[%clk 0:04:06.1]} 12. Bd2 {[%clk 0:03:57.1]} 12... Ng6 {[%clk
0:04:02.4]} 13. Rae1 {[%clk 0:03:51.2]} 13... Re8 {[%clk 0:03:59.5]} 14. Rxe8+
{[%clk 0:03:48.1]} 14... Qxe8 {[%clk 0:03:58.2]} 15. Re1 {[%clk 0:03:47.7]}
15... Qd7 {[%clk 0:03:56.8]} 16. Ne2 {[%clk 0:03:27.3]} 16... Re8 {[%clk
0:03:51.6]} 17. Kh1 {[%clk 0:03:21.6]} 17... Qc7 {[%clk 0:03:41.9]} 18. Qg5
{[%clk 0:02:54.3]} 18... Qc8 {[%clk 0:03:22.2]} 19. Ng3 {[%clk 0:02:48.1]} 19...
Bg4 {[%clk 0:03:18.2]} 20. h3 {[%clk 0:02:23.3]} 20... Bxf3 {[%clk 0:03:14.2]}
21. gxf3 {[%clk 0:02:21.2]} 21... Rxe1+ {[%clk 0:03:10.9]} 22. Bxe1 {[%clk
0:02:19.7]} 22... Bxf4 {[%clk 0:03:07.8]} 23. Qg4 {[%clk 0:01:52.1]} 23... Qxg4
{[%clk 0:02:45.9]} 24. hxg4 {[%clk 0:01:52]} 24... Bxg3 {[%clk 0:02:42]} 25.
Bxg3 {[%clk 0:01:51.9]} 25... c4 {[%clk 0:02:34.9]} 26. d4 {[%clk 0:01:48.2]}
26... f6 {[%clk 0:02:21.6]} 27. c3 {[%clk 0:01:45.5]} 27... Kf7 {[%clk
0:02:19.3]} 28. Kg1 {[%clk 0:01:44.7]} 28... Ke6 {[%clk 0:02:06.8]} 29. f4
{[%clk 0:01:42.8]} 29... f5 {[%clk 0:02:04.6]} 30. gxf5+ {[%clk 0:01:36.9]}
30... Kxf5 {[%clk 0:02:02.9]} 31. Kf2 {[%clk 0:01:36.5]} 31... h5 {[%clk
0:01:57.2]} 32. Bh2 {[%clk 0:01:31.5]} 32... Nxf4 {[%clk 0:01:51.7]} 33. Bxf4
{[%clk 0:01:29.5]} 33... Kxf4 {[%clk 0:01:51]} 34. a4 {[%clk 0:01:25.5]} 34...
a5 {[%clk 0:01:47.4]} 35. Kg2 {[%clk 0:01:21.4]} 35... g5 {[%clk 0:01:44.1]} 36.
Kh3 {[%clk 0:01:18]} 36... Kf3 {[%clk 0:01:42.3]} 37. Kh2 {[%clk 0:01:17.1]}
37... g4 {[%clk 0:01:39.7]} 38. Kh1 {[%clk 0:01:15.6]} 38... Kg3 {[%clk
0:01:38.4]} 39. Kg1 {[%clk 0:01:13.6]} 39... Kh3 {[%clk 0:01:37.5]} 40. Kh1
{[%clk 0:01:11.7]} 40... Kg3 {[%clk 0:01:35.8]} 41. Kg1 {[%clk 0:01:10.5]} 41...
Kf3 {[%clk 0:01:33.8]} 42. Kh1 {[%clk 0:01:08.1]} 42... Kf2 {[%clk 0:01:32.6]}
43. Kh2 {[%clk 0:01:04.5]} 43... g3+ {[%clk 0:01:29.9]} 44. Kh1 {[%clk
0:01:03.5]} 44... g2+ {[%clk 0:01:29.3]} 45. Kh2 {[%clk 0:01:02.8]} 45... g1=Q+
{[%clk 0:01:28.4]} 46. Kh3 {[%clk 0:01:02.7]} 46... Qg3# {[%clk 0:01:27.4]} 0-1

[Event "Live Chess"]
[Site "Chess.com"]
[Date "2023.05.20"]
[Round "-"]
[White "JackCheetham1"]
[Black "RoaringKnights"]
[Result "1-0"]
[WhiteElo "1692"]
[BlackElo "930"]
[TimeControl "300"]
[EndTime "10:09:52 PDT"]
[Termination "JackCheetham1 won by checkmate"]

1. e4 {[%clk 0:04:57.9]} 1... c6 {[%clk 0:04:55.9]} 2. d4 {[%clk 0:04:52.8]}
2... d5 {[%clk 0:04:54.8]} 3. Nd2 {[%clk 0:04:51.4]} 3... Nf6 {[%clk 0:04:50]}
4. e5 {[%clk 0:04:50.3]} 4... Nfd7 {[%clk 0:04:38]} 5. f4 {[%clk 0:04:49.3]}
5... e6 {[%clk 0:04:35.6]} 6. Ngf3 {[%clk 0:04:47.9]} 6... c5 {[%clk 0:04:34.4]}
7. c3 {[%clk 0:04:47.1]} 7... c4 {[%clk 0:04:30.7]} 8. Be2 {[%clk 0:04:45.3]}
8... Nb6 {[%clk 0:04:29.3]} 9. a4 {[%clk 0:04:42.1]} 9... a5 {[%clk 0:04:27.3]}
10. O-O {[%clk 0:04:37.3]} 10... Nc6 {[%clk 0:04:16.3]} 11. Re1 {[%clk
0:04:25.9]} 11... Qh4 {[%clk 0:04:07.2]} 12. Nxh4 {[%clk 0:04:24.4]} 12... Be7
{[%clk 0:04:02.9]} 13. Ndf3 {[%clk 0:04:18.3]} 13... Bxh4 {[%clk 0:04:01.7]} 14.
Nxh4 {[%clk 0:04:17.2]} 14... O-O {[%clk 0:04:00.7]} 15. Bg4 {[%clk 0:04:09.2]}
15... f5 {[%clk 0:03:53.1]} 16. exf6 {[%clk 0:04:07.3]} 16... Rxf6 {[%clk
0:03:50]} 17. g3 {[%clk 0:03:56.1]} 17... h6 {[%clk 0:03:40.6]} 18. Nf3 {[%clk
0:03:53.9]} 18... g6 {[%clk 0:03:35.4]} 19. Ne5 {[%clk 0:03:48.7]} 19... Nxe5
{[%clk 0:03:33.2]} 20. fxe5 {[%clk 0:03:48.6]} 20... Rf8 {[%clk 0:03:30.6]} 21.
Bxh6 {[%clk 0:03:47.3]} 21... Rf7 {[%clk 0:03:29.1]} 22. Rf1 {[%clk 0:03:45.1]}
22... Rxf1+ {[%clk 0:03:26.8]} 23. Qxf1 {[%clk 0:03:43.8]} 23... Bd7 {[%clk
0:03:23.6]} 24. Qf6 {[%clk 0:03:42.6]} 24... Kh7 {[%clk 0:03:20.1]} 25. Qg7#
{[%clk 0:03:41.5]} 1-0

[Event "Live Chess"]
[Site "Chess.com"]
[Date "2023.05.20"]
[Round "-"]
[White "ramses-IIG"]
[Black "OBrightwell100"]
[Result "1-0"]
[WhiteElo "759"]
[BlackElo "1309"]
[TimeControl "300"]
[EndTime "10:09:53 PDT"]
[Termination "ramses-IIG won by checkmate"]

1. e4 {[%clk 0:04:58.6]} 1... e5 {[%clk 0:04:58.6]} 2. Nf3 {[%clk 0:04:58.5]}
2... Nc6 {[%clk 0:04:53.4]} 3. Bc4 {[%clk 0:04:56.2]} 3... f5 {[%clk 0:04:51.7]}
4. d3 {[%clk 0:04:53]} 4... Nf6 {[%clk 0:04:49.8]} 5. Ng5 {[%clk 0:04:48.9]}
5... d5 {[%clk 0:04:43.3]} 6. exd5 {[%clk 0:04:46.7]} 6... Nxd5 {[%clk
0:04:43.2]} 7. Qf3 {[%clk 0:04:43.1]} 7... Be6 {[%clk 0:04:39.8]} 8. Nxe6 {[%clk
0:04:34.7]} 8... Nd4 {[%clk 0:04:29.6]} 9. Nxd4 {[%clk 0:04:27.6]} 9... exd4
{[%clk 0:04:27.3]} 10. Qxf5 {[%clk 0:04:19.1]} 10... c6 {[%clk 0:04:13.7]} 11.
O-O {[%clk 0:04:07.8]} 11... g6 {[%clk 0:03:56.4]} 12. Re1+ {[%clk 0:04:05.3]}
12... Be7 {[%clk 0:03:46.3]} 13. Qe5 {[%clk 0:03:56.5]} 13... O-O {[%clk
0:03:20.1]} 14. Bh6 {[%clk 0:03:50.5]} 14... Rf5 {[%clk 0:03:15.2]} 15. Qg7#
{[%clk 0:03:47.4]} 1-0